bitfinex/quotes_SOLUSD_20250307
["timestamp","ask_amount","ask_price","bid_price","bid_amount"]
[1741314049505,82.14216157,141.06,140.98,0.14216157]
[1741314049704,82.0,141.05,140.98,0.14216157]
[1741314050006,82.0,141.05,140.99,312.0]
[1741314050521,82.0,141.05,141.0,0.14216157]
[1741314051034,82.0,141.05,140.99,312.0]
[1741314051335,18.53788577,141.07,141.0,0.14216157]
[1741314051533,18.53788577,141.07,140.99,336.1567496]
[1741314051705,18.53788577,141.07,141.0,0.14216157]
[1741314052343,18.53788577,141.07,140.97,137.83]
[1741314052344,82.14216157,141.06,140.97,0.03]
[1741314052506,8.26,141.05,140.94,24.1867496]
[1741314052712,0.14216157,141.02,140.94,0.03]
[1741314052909,0.14216157,141.02,140.88,8.29]
[1741314052910,27.96401043,141.0,140.88,0.03]
[1741314053134,90.26,140.99,140.88,0.03]
[1741314053338,0.14216157,140.97,140.88,312.03]
[1741314053535,82.0,140.96,140.88,312.03]
[1741314055331,82.0,140.96,140.89,0.14216157]
[1741314055543,82.0,140.96,140.88,312.03]
[1741314056145,82.0,140.96,140.89,0.14216157]
[1741314056309,3.60415007,140.96,140.89,42.94856003]
[1741314056514,90.26,140.99,140.89,42.94856003]
[1741314058243,82.0,140.98,140.89,18.64964886]
[1741314058413,82.0,140.98,140.89,0.14216157]
[1741314058754,82.0,140.98,140.89,18.79181043]
[1741314059117,82.0,140.98,140.89,42.94856003]
[1741314059326,82.0,140.98,140.91,0.14216157]
[1741314061121,82.0,140.98,140.9,24.1567496]
[1741314061325,82.14216157,140.97,140.88,0.03]
[1741314061522,90.6742,140.96,140.88,0.03]
[1741314061938,18.79181043,140.95,140.88,0.03]
[1741314062425,90.6742,140.96,140.88,0.03]
[1741314062828,90.6742,140.96,140.88,312.03]
[1741314063229,82.0,140.95,140.88,312.03]
[1741314063432,82.0,140.94,140.88,0.03]
[1741314063622,82.0,140.93,140.88,0.03]
[1741314065361,82.0,140.92,140.88,0.03]
[1741314065866,82.0,140.92,140.88,0.17216157]
[1741314066228,82.0,140.92,140.88,0.03]
[1741314066562,82.0,140.92,140.88,312.03]
[1741314066865,3.52700796,140.92,140.88,312.03]
[1741314067024,82.0,140.95,140.88,0.03]
[1741314068250,82.0,140.94,140.88,0.03]
[1741314068857,100.79181043,140.93,140.87,1.9660009]
[1741314069066,9.395,140.91,140.83,0.03]
[1741314069271,100.79181043,140.9,140.8,0.03]
[1741314069566,18.79181043,140.86,140.8,0.03]
[1741314069763,82.0,140.85,140.8,0.03]
[1741314070129,9.2949,140.87,140.8,0.03]
[1741314070660,18.63868138,140.87,140.8,25.6112957]
[1741314070834,18.63868138,140.87,140.81,18.933972]
[1741314071228,18.63868138,140.87,140.8,25.6112957]
[1741314071667,82.14216157,140.86,140.8,1.4545461]
[1741314071963,82.14216157,140.86,140.71,24.1567496]
[1741314071964,0.14216157,140.84,140.71,24.1567496]
[1741314072141,90.26,140.83,140.73,24.1867496]
[1741314072334,90.26,140.83,140.74,18.933972]
[1741314072742,82.0,140.83,140.74,18.64964886]
[1741314072952,82.0,140.82,140.73,24.1867496]
[1741314073153,82.0,140.82,140.75,0.14216157]
[1741314073353,82.0,140.86,140.76,18.64964886]
[1741314073676,26.89868138,140.87,140.77,0.28432314]
[1741314073677,18.63868138,140.87,140.77,0.28432314]
[1741314073972,18.63868138,140.87,140.77,29.65733173]
[1741314074142,18.63868138,140.87,140.77,0.28432314]
[1741314075365,82.0,140.86,140.77,0.14216157]
[1741314075837,100.79181043,140.85,140.73,0.03]
[1741314076072,82.0,140.84,140.73,18.67964886]
[1741314076299,82.0,140.83,140.73,0.03]
[1741314076572,82.0,140.83,140.74,0.14216157]
[1741314076865,82.0,140.83,140.73,18.67964886]
[1741314077069,82.0,140.83,140.74,312.14216157]
[1741314077239,82.0,140.83,140.76,0.14216157]
[1741314077664,103.371214,140.85,140.76,24.29891117]
[1741314077962,103.371214,140.85,140.78,0.14216157]
[1741314078365,82.0,140.85,140.78,0.14216157]
[1741314078666,82.0,140.85,140.77,18.933972]
[1741314078868,82.0,140.85,140.77,0.14216157]
[1741314079053,82.0,140.85,140.76,24.1567496]
[1741314079252,100.79181043,140.84,140.74,8.26]
[1741314079767,82.0,140.84,140.74,8.26]
[1741314079942,18.79181043,140.83,140.74,8.26]
[1741314080148,9.3441,140.81,140.73,0.03]
[1741314080570,9.3441,140.81,140.73,312.03]
[1741314080877,9.3441,140.81,140.73,0.03]
[1741314082273,12.94381509,140.81,140.73,0.03]
[1741314083180,34.32056909,140.81,140.73,0.03]
[1741314083481,12.94381509,140.81,140.73,0.03]
[1741314083653,12.94381509,140.81,140.74,0.14216157]
[1741314083972,12.94381509,140.81,140.73,312.03]
[1741314084148,12.94381509,140.81,140.73,0.17216157]
[1741314084549,12.94381509,140.81,140.74,0.14216157]
[1741314084849,12.94381509,140.81,140.74,18.79181043]
[1741314085285,12.94381509,140.81,140.74,42.94856003]
[1741314086281,12.94381509,140.81,140.75,0.14216157]
[1741314086474,2.7733,140.81,140.77,18.933972]
[1741314086681,9.1445,140.85,140.77,50.1941216]
[1741314086979,9.1445,140.85,140.77,217.36713019]
[1741314087164,9.1445,140.85,140.81,312.0]
[1741314087555,15.04763774,140.89,140.82,18.933972]
[1741314087762,9.2813,140.89,140.82,80.72373019]
[1741314087956,3.57788693,140.91,140.84,48.30698059]
[1741314088182,9.2813,140.93,140.84,48.30698059]
[1741314088368,9.2813,140.93,140.86,0.14216157]
[1741314088569,15.0367891,140.93,140.86,0.14216157]
[1741314089381,9.2813,140.93,140.88,0.14216157]
[1741314089580,12.87983338,140.93,140.88,24.1567496]
[1741314089780,18.589644,140.93,140.88,24.1567496]
[1741314089986,18.589644,140.93,140.83,24.1567496]
[1741314090159,100.64964886,140.92,140.83,24.1567496]
[1741314090361,82.0,140.91,140.83,24.1567496]
[1741314090581,82.0,140.91,140.84,0.14216157]
[1741314090880,82.0,140.91,140.84,312.14216157]
[1741314091181,82.0,140.9,140.8,24.1567496]
[1741314091483,82.0,140.9,140.81,0.28432314]
[1741314091783,82.0,140.9,140.81,0.14216157]
[1741314091994,82.0,140.9,140.81,0.28432314]
[1741314092868,82.0,140.9,140.81,18.933972]
[1741314093474,82.0,140.9,140.81,0.28432314]
[1741314093875,82.0,140.9,140.81,18.933972]
[1741314094087,82.0,140.9,140.83,0.14216157]
[1741314094278,82.0,140.92,140.83,43.0907216]
[1741314094482,82.0,140.92,140.83,72.46373019]
[1741314094675,82.0,140.92,140.85,0.14216157]
[1741314095269,82.0,140.92,140.84,8.26]
[1741314096484,82.0,140.92,140.85,0.14216157]
[1741314097683,82.0,140.92,140.85,312.14216157]
[1741314097885,82.0,140.92,140.86,0.14216157]
[1741314098076,18.589644,140.93,140.87,0.14216157]
[1741314098590,18.589644,140.93,140.86,24.1567496]
[1741314099775,100.589644,140.93,140.85,312.0]
[1741314099976,82.14216157,140.92,140.81,24.1567496]
[1741314100192,18.79181043,140.88,140.77,24.1567496]
[1741314100503,82.0,140.87,140.78,0.14216157]
[1741314100866,100.791811,140.87,140.78,0.14216157]
[1741314101098,100.791811,140.87,140.77,24.1567496]
[1741314101311,100.791811,140.87,140.75,24.1567496]
[1741314101312,9.2659,140.85,140.75,24.1567496]
[1741314101500,82.0,140.84,140.75,24.1567496]
[1741314101967,100.79181043,140.83,140.73,0.03]
[1741314102171,18.64964886,140.81,140.73,0.03]
[1741314102369,82.0,140.8,140.73,0.03]
[1741314103996,91.3314,140.79,140.73,0.03]
[1741314104300,100.64964886,140.78,140.73,0.03]
[1741314104476,82.0,140.78,140.73,0.03]
[1741314104877,85.57834582,140.78,140.73,0.03]
[1741314105984,3.57834582,140.78,140.73,0.03]
[1741314106313,9.3314,140.79,140.73,0.03]
[1741314106488,12.96128128,140.79,140.73,0.03]
[1741314107585,108.90964886,140.78,140.67,24.1567496]
[1741314107902,18.64964886,140.74,140.64,24.1567496]
[1741314108205,82.0,140.73,140.64,24.1567496]
[1741314108705,18.64964886,140.71,140.62,24.1567496]
[1741314109006,8.9096,140.69,140.63,18.933972]
[1741314109189,8.9096,140.69,140.63,24.29891117]
[1741314109510,8.9096,140.69,140.63,24.1567496]
[1741314109686,14.62968325,140.69,140.63,24.1567496]
[1741314109876,8.9096,140.69,140.63,24.1567496]
[1741314110080,8.9096,140.69,140.64,0.14216157]
[1741314110302,12.49395889,140.69,140.64,312.14216157]
[1741314110506,8.9096,140.69,140.65,0.14216157]
[1741314110891,8.9096,140.69,140.65,18.79181043]
[1741314111093,2.7936,140.69,140.65,0.14216157]
[1741314111405,8.7989,140.73,140.66,48.16481902]
[1741314111604,8.7989,140.73,140.68,0.28432314]
[1741314111989,8.7989,140.73,140.68,29.65733173]
[1741314112192,8.7989,140.73,140.68,0.28432314]
[1741314112716,8.6136,140.77,140.7,0.14216157]
[1741314112880,8.6136,140.77,140.71,0.14216157]
[1741314113690,8.6136,140.77,140.74,312.0]
[1741314114213,8.6136,140.77,140.75,0.14216157]
[1741314114415,3.48482689,140.79,140.75,0.14216157]
[1741314114612,8.8291,140.81,140.73,0.28432314]
[1741314114912,8.8291,140.81,140.75,0.28432314]
[1741314115086,8.8291,140.81,140.75,29.65733173]
[1741314115481,2.646,140.81,140.77,0.14216157]
[1741314115788,2.646,140.81,140.78,0.28432314]
[1741314115988,6.1831,140.85,140.78,80.72373019]
[1741314116186,6.1831,140.85,140.78,218.52373019]
[1741314116491,6.1831,140.85,140.78,189.1507216]
[1741314116999,6.1831,140.85,140.78,218.52373019]
[1741314117315,6.1831,140.85,140.81,0.14216157]
[1741314118813,6.1831,140.85,140.81,0.28432314]
[1741314119013,6.31506911,140.86,140.81,0.28432314]
[1741314119311,2.7925,140.86,140.81,0.28432314]
[1741314119512,2.7925,140.86,140.81,43.0907216]
[1741314119829,6.0308,140.89,140.81,72.46373019]
[1741314120382,6.0308,140.89,140.81,43.0907216]
[1741314120888,6.0308,140.89,140.83,18.933972]
[1741314121091,0.033,140.9,140.85,0.28432314]
[1741314121290,0.033,140.9,140.85,24.1567496]
[1741314121501,0.033,140.9,140.83,0.14216157]
[1741314121895,0.033,140.9,140.82,161.9567496]
[1741314122101,82.033,140.9,140.82,24.1567496]
[1741314122411,98.07079865,140.9,140.82,24.1567496]
[1741314122615,82.033,140.9,140.82,24.1567496]
[1741314122909,82.033,140.9,140.83,0.14216157]
[1741314123286,82.033,140.9,140.81,0.14216157]
[1741314123491,88.4695,140.89,140.78,161.9567496]
[1741314123707,18.64964886,140.87,140.78,24.1567496]
[1741314123918,2.8238,140.84,140.74,170.2167496]
[1741314124215,18.64964886,140.81,140.7,331.1167496]
[1741314124417,82.0,140.8,140.7,643.1167496]
[1741314124614,90.24,140.8,140.71,0.28432314]
[1741314124816,90.24,140.8,140.71,24.44107274]
[1741314125023,82.0,140.8,140.71,53.81408133]
[1741314125321,82.0,140.8,140.71,24.1567496]
[1741314125922,82.0,140.79,140.71,24.1567496]
[1741314126119,82.0,140.79,140.72,0.14216157]
[1741314126613,82.0,140.79,140.72,0.28432314]
[1741314126821,6.4695,140.82,140.72,180.8907216]
[1741314127009,9.97616,140.82,140.72,162.24107274]
[1741314127213,16.03779865,140.81,140.72,162.24107274]
[1741314127519,9.97616,140.82,140.72,162.24107274]
[1741314127822,9.97616,140.82,140.74,0.14216157]
[1741314128115,13.96155231,140.81,140.73,0.14216157]
[1741314128855,9.97616,140.82,140.73,0.14216157]
[1741314129695,9.97616,140.82,140.74,0.14216157]
[1741314129900,9.97616,140.82,140.75,18.79181043]
[1741314130122,9.97616,140.82,140.75,48.16481902]
[1741314130403,9.97616,140.82,140.75,0.28432314]
[1741314131199,20.79181043,140.8,140.66,161.9567496]
[1741314131402,20.79181043,140.8,140.61,138.01324235]
[1741314131403,18.79181043,140.77,140.61,138.01324235]
[1741314131615,18.64964886,140.75,140.61,161.9567496]
[1741314131806,18.64964886,140.72,140.61,161.9567496]
[1741314132016,2.6736,140.73,140.61,24.1567496]
[1741314132214,18.64964886,140.72,140.62,0.28432314]
[1741314132529,18.64964886,140.72,140.61,24.1567496]
[1741314132734,6.18689697,140.73,140.62,18.64964886]
[1741314132938,6.18689697,140.73,140.65,18.933972]
[1741314133146,2.6736,140.73,140.65,180.8907216]
[1741314133321,2.6736,140.73,140.65,24.44107274]
[1741314133516,2.6736,140.73,140.67,0.28432314]
[1741314133717,15.65650634,140.76,140.69,0.14216157]
[1741314134035,15.65650634,140.76,140.68,312.0]
[1741314134233,100.79181043,140.75,140.59,172.2087036]
[1741314134442,100.79181043,140.75,140.59,163.9687036]
[1741314134443,0.14216157,140.72,140.59,163.9687036]
[1741314134614,18.64964886,140.7,140.6,0.28432314]
[1741314134936,18.64964886,140.7,140.59,163.9687036]
[1741314135118,105.96900465,140.71,140.59,26.1687036]
[1741314135318,18.79181043,140.7,140.59,26.1687036]
[1741314135825,18.79181043,140.7,140.59,2.011954]
[1741314135826,9.2995,140.67,140.59,2.011954]
[1741314136043,18.64964886,140.65,140.59,2.011954]
[1741314136212,26.88964886,140.65,140.59,2.011954]
[1741314137145,8.24,140.65,140.59,314.011954]
[1741314138012,0.14216157,140.63,140.59,2.011954]
[1741314138212,82.0,140.62,140.58,0.03]
[1741314138407,18.64964886,140.61,140.58,0.0001]
[1741314139009,82.0,140.62,140.58,0.0001]
[1741314139355,100.64964886,140.61,140.58,0.0001]
[1741314139510,82.0,140.61,140.58,0.0001]
[1741314139843,11.74856493,140.65,140.58,0.0001]
[1741314140153,12.52640488,140.65,140.58,0.0001]
[1741314140453,88.6051,140.72,140.61,44.27869748]
[1741314140748,6.6051,140.72,140.64,0.14216157]
[1741314140950,96.36790307,140.71,140.64,312.0]
[1741314141151,96.36790307,140.71,140.61,82.1]
[1741314141152,18.79181043,140.7,140.61,82.1]
[1741314141341,18.79181043,140.7,140.59,169.34]
[1741314141342,82.0,140.7,140.59,169.34]
[1741314141546,82.0,140.7,140.6,0.28432314]
[1741314141863,82.0,140.69,140.58,219.9001]
[1741314142168,18.46531055,140.72,140.59,44.56302062]
[1741314142454,82.0,140.71,140.59,264.46302062]
[1741314142629,82.0,140.71,140.59,220.18432314]
[1741314142950,18.46531055,140.72,140.59,82.38432314]
[1741314142951,82.0,140.7,140.59,82.38432314]
[1741314143251,82.0,140.7,140.58,182.07879748]
[1741314143252,100.64964886,140.69,140.58,0.0001]
[1741314143432,82.0,140.68,140.58,0.0001]
[1741314143937,92.20531055,140.72,140.62,0.14216157]
[1741314144144,10.20531055,140.72,140.65,312.0]
[1741314144329,92.20531055,140.72,140.65,312.0]
[1741314144529,100.64964886,140.71,140.59,0.28432314]
[1741314144729,90.26,140.7,140.59,0.28432314]
[1741314145129,10.20531055,140.72,140.62,0.28432314]
[1741314145437,10.20531055,140.72,140.62,126.66302062]
[1741314145635,10.20531055,140.72,140.61,137.8]
[1741314145636,18.64964886,140.71,140.59,0.14216157]
[1741314145843,82.0,140.7,140.59,82.24216157]
[1741314146140,90.26,140.7,140.59,82.24216157]
[1741314146852,90.26,140.7,140.6,0.14216157]
[1741314147234,90.26,140.7,140.59,82.24216157]
[1741314147425,90.26,140.7,140.61,0.14216157]
[1741314147723,10.23831055,140.72,140.62,0.14216157]
[1741314147927,10.23831055,140.72,140.63,0.14216157]
[1741314148452,10.23831055,140.72,140.62,82.1]
[1741314148748,10.23831055,140.72,140.58,8.2601]
[1741314148749,0.14216157,140.69,140.58,0.0001]
[1741314148955,90.26,140.68,140.58,0.0001]
[1741314149160,90.26,140.68,140.59,0.14216157]
[1741314149161,8.26,140.68,140.59,0.14216157]
[1741314149451,8.26,140.68,140.58,219.9001]
[1741314149824,8.26,140.68,140.59,0.28432314]
[1741314150025,82.0,140.71,140.59,0.28432314]
[1741314150229,18.64964886,140.7,140.58,219.9001]
[1741314150934,18.64964886,140.7,140.59,312.0]
[1741314151530,18.64964886,140.68,140.59,312.0]
[1741314151837,18.79181043,140.65,140.58,0.0001]
[1741314152160,18.79181043,140.65,140.57,0.0011]
[1741314152161,0.14216157,140.61,140.57,0.0011]
[1741314152456,82.0,140.6,140.57,0.0011]
[1741314152663,82.0,140.59,140.57,0.0011]
[1741314153751,82.0,140.59,140.48,25.76764886]
[1741314153752,84.743,140.58,140.48,82.1]
[1741314153934,82.0,140.57,140.48,82.1]
[1741314154268,82.0,140.56,140.47,0.28432314]
[1741314154469,82.0,140.56,140.47,44.42085905]
[1741314154665,84.743,140.58,140.49,0.14216157]
[1741314154963,82.0,140.61,140.52,44.56302062]
[1741314155163,82.0,140.61,140.52,82.38432314]
[1741314155841,6.0397,140.62,140.54,0.28432314]
[1741314156038,85.58482296,140.63,140.54,82.1]
[1741314156338,82.0,140.62,140.51,82.1]
[1741314156773,82.0,140.62,140.52,0.14216157]
[1741314156931,82.0,140.64,140.52,126.66302062]
[1741314157261,110.82096313,140.67,140.54,0.14216157]
[1741314157441,92.17131427,140.67,140.55,0.14216157]
[1741314157955,82.0,140.66,140.56,0.14216157]
[1741314158263,82.0,140.65,140.58,312.0]
[1741314158451,92.17131427,140.67,140.59,0.14216157]
[1741314158652,18.64964886,140.65,140.55,82.1]
[1741314158841,18.64964886,140.63,140.51,82.1]
[1741314159162,82.0,140.62,140.51,82.1]
[1741314159539,82.0,140.62,140.52,0.28432314]
[1741314160054,82.0,140.62,140.52,220.18432314]
[1741314160843,82.0,140.62,140.52,271.57922062]
[1741314161037,82.0,140.62,140.52,220.18432314]
[1741314161639,82.0,140.62,140.53,312.0]
[1741314161854,82.0,140.62,140.54,0.28432314]
[1741314162159,82.0,140.62,140.54,82.24216157]
[1741314162962,82.0,140.62,140.55,0.14216157]
[1741314163169,3.52201026,140.63,140.55,220.04216157]
[1741314163371,82.0,140.66,140.56,0.14216157]
[1741314163542,82.0,140.66,140.56,282.97050791]
[1741314163745,82.0,140.66,140.58,0.14216157]
[1741314163942,10.17131427,140.67,140.6,0.14216157]
[1741314164153,10.17131427,140.67,140.61,0.14216157]
[1741314164641,10.17131427,140.67,140.61,82.1]
[1741314164858,10.17131427,140.67,140.62,0.14216157]
[1741314165149,6.5897,140.67,140.62,312.28432314]
[1741314165348,6.5897,140.67,140.62,312.14216157]
[1741314165560,6.5897,140.67,140.62,0.14216157]
[1741314165850,6.5897,140.67,140.61,82.1]
[1741314166064,88.5897,140.67,140.58,0.28432314]
[1741314166640,88.5897,140.67,140.58,63.07050791]
[1741314166854,6.5897,140.67,140.6,44.42085905]
[1741314167048,6.5897,140.67,140.61,0.14216157]
[1741314167259,6.18918895,140.68,140.61,0.14216157]
[1741314167571,82.0,140.7,140.61,44.42085905]
[1741314167774,6.2085,140.71,140.63,0.14216157]
[1741314167975,6.2085,140.71,140.63,0.28432314]
[1741314168568,6.2085,140.71,140.63,532.18432314]
[1741314168750,6.2085,140.71,140.63,540.96432314]
[1741314169173,6.2085,140.71,140.63,228.96432314]
[1741314169782,0.033,140.72,140.65,0.14216157]
[1741314169955,0.033,140.72,140.66,0.14216157]
[1741314170371,14.85787284,140.72,140.66,0.14216157]
[1741314170765,0.033,140.72,140.66,0.14216157]
[1741314171870,0.033,140.72,140.67,0.14216157]
[1741314172182,0.033,140.72,140.7,312.0]
[1741314172385,0.033,140.72,140.7,394.1]
[1741314172766,0.033,140.72,140.71,0.28432314]
[1741314173167,0.033,140.72,140.71,0.14216157]
[1741314173794,0.033,140.72,140.71,82.24216157]
[1741314174163,0.033,140.72,140.71,82.1]
[1741314174361,0.033,140.72,140.68,219.9]
[1741314175500,0.033,140.72,140.69,0.14216157]
[1741314175702,0.033,140.72,140.69,0.28432314]
[1741314175905,0.033,140.72,140.71,0.14216157]
[1741314176198,0.033,140.72,140.71,82.24216157]
[1741314176394,0.033,140.72,140.71,82.38432314]
[1741314176559,0.033,140.72,140.71,298.89946948]
[1741314176765,0.01262824,140.72,140.71,298.89946948]
[1741314176965,6.4188,140.83,140.73,0.14216157]
[1741314177166,6.4188,140.83,140.76,0.14216157]
[1741314177394,6.4188,140.83,140.77,0.14216157]
[1741314177600,15.82644058,140.84,140.78,53.08085905]
[1741314177810,0.033,140.85,140.78,54.57172371]
[1741314178601,0.033,140.85,140.8,0.14216157]
[1741314178769,0.033,140.85,140.81,0.14216157]
[1741314178976,0.033,140.85,140.8,82.1]
[1741314179388,0.033,140.85,140.81,312.0]
[1741314179570,0.033,140.85,140.82,0.14216157]
[1741314180475,0.033,140.85,140.81,312.0]
[1741314180881,0.033,140.85,140.76,82.1]
[1741314181200,88.3501,140.84,140.72,219.9]
[1741314181365,82.0,140.83,140.73,0.28432314]
[1741314181773,82.0,140.83,140.72,219.9]
[1741314181971,82.0,140.83,140.72,82.1]
[1741314181972,2.7782,140.81,140.72,82.1]
[1741314182197,24.74264886,140.79,140.66,389.28]
[1741314182370,82.0,140.78,140.66,389.28]
[1741314182698,0.19001091,140.84,140.83,2.0]
[1741314183000,22.11455856,140.94,140.85,0.14216157]
[1741314183198,0.033,140.9,140.89,44.27869748]
[1741314183408,0.033,140.9,140.89,52.93869748]
[1741314183930,11.03084415,140.94,140.9,7.23936157]
[1741314184208,111.26686466,140.97,140.94,2.14216157]
[1741314184411,111.26686466,140.97,140.96,44.42085905]
[1741314185081,111.26686466,140.97,140.96,0.14216157]
[1741314185296,111.26686466,140.97,140.96,44.42085905]
[1741314185891,111.26686466,140.97,140.96,8.64]
[1741314186491,111.26686466,140.97,140.96,8.78216157]
[1741314186692,111.26686466,140.97,140.96,53.06085905]
[1741314187111,0.033,140.97,140.96,8.78216157]
[1741314187310,0.033,140.97,140.96,504.34983125]
[1741314187622,0.033,140.97,140.96,502.86085905]
[1741314188193,0.033,140.97,140.96,584.96085905]
[1741314188391,0.033,140.97,140.96,631.23955653]
[1741314188723,0.033,140.99,140.97,2.14216157]
[1741314188893,0.033,140.99,140.98,45.90911771]
[1741314189414,0.033,140.99,140.98,265.80911771]
[1741314189624,0.033,140.99,140.98,308.59955653]
[1741314190323,0.033,140.99,140.98,264.32085905]
[1741314190493,0.033,140.99,140.98,220.04216157]
[1741314190696,0.033,140.99,140.98,264.32085905]
[1741314192022,0.033,140.99,140.98,532.04216157]
[1741314192313,0.033,140.99,140.98,576.32085905]
[1741314192717,0.033,140.99,140.98,639.39136696]
[1741314192907,0.033,140.99,140.98,550.833972]
[1741314193212,0.033,140.99,140.98,595.11266948]
[1741314193599,0.033,140.99,140.98,639.39136696]
[1741314193998,0.033,140.99,140.98,595.11266948]
[1741314194399,0.033,141.12,141.06,2.0]
[1741314194705,0.033,141.12,141.11,44.56302062]
[1741314195003,0.033,141.12,141.11,220.04216157]
[1741314195313,0.033,141.12,141.11,0.14216157]
[1741314197592,0.033,141.12,141.11,356.42085905]
[1741314197793,0.033,141.2,141.12,0.28432314]
[1741314198097,0.033,141.2,141.16,0.14216157]
[1741314198504,0.033,141.2,141.13,8.5]
[1741314198719,0.033,141.2,141.14,18.79181043]
[1741314198898,0.033,141.2,141.14,63.07050791]
[1741314199301,0.033,141.2,141.16,0.14216157]
[1741314199515,0.033,141.2,141.18,0.14216157]
[1741314200099,0.033,141.2,141.19,44.42085905]
[1741314200300,0.033,141.2,141.19,145.17050791]
[1741314200627,0.033,141.2,141.19,126.52085905]
[1741314200802,0.033,141.2,141.19,145.17050791]
[1741314201003,0.033,141.2,141.19,457.17050791]
[1741314201332,0.033,141.2,141.19,412.89181043]
[1741314201509,0.033,141.2,141.19,457.17050791]
[1741314202309,0.033,141.2,141.19,465.77266948]
[1741314202816,0.033,141.2,141.19,647.85136696]
[1741314203623,0.033,141.2,141.19,603.57266948]
[1741314204116,0.033,141.2,141.19,595.11266948]
[1741314204294,0.033,141.2,141.19,394.24216157]
[1741314204731,0.033,141.2,141.19,394.1]
[1741314205029,0.033,141.2,141.19,394.24216157]
[1741314205902,0.033,141.2,141.19,412.89181043]
[1741314206109,0.033,141.2,141.19,457.17050791]
[1741314206312,0.033,141.2,141.19,412.89181043]
[1741314206519,0.033,141.2,141.19,312.14216157]
[1741314206828,0.033,141.2,141.19,312.0]
[1741314206997,0.033,141.2,141.19,356.42085905]
[1741314207200,0.033,141.2,141.19,312.14216157]
[1741314207903,0.033,141.2,141.19,576.46302062]
[1741314208316,0.033,141.2,141.19,639.39136696]
[1741314208916,0.033,141.2,141.19,595.11266948]
[1741314209430,0.033,141.2,141.19,639.39136696]
[1741314209632,0.033,141.2,141.19,646.47396696]
[1741314209931,0.033,141.2,141.19,639.39136696]
[1741314210108,0.033,141.2,141.19,595.11266948]
[1741314212636,0.033,141.2,141.19,576.17869748]
[1741314212939,0.033,141.2,141.19,394.24216157]
[1741314213145,0.033,141.2,141.19,394.1]
[1741314213341,0.033,141.2,141.19,394.24216157]
[1741314214629,0.033,141.2,141.19,312.14216157]
[1741314215648,0.033,141.2,141.19,438.52085905]
[1741314215945,0.033,141.2,141.19,595.11266948]
[1741314216122,0.033,141.2,141.19,639.39136696]
[1741314216438,0.033,141.2,141.19,646.47396696]
[1741314217231,2.011954,141.29,141.2,18.933972]
[1741314217409,2.011954,141.29,141.28,44.42085905]
[1741314217940,2.011954,141.29,141.28,64.69844806]
[1741314218439,2.011954,141.29,141.28,71.77654806]
[1741314219009,2.011954,141.29,141.28,20.41975058]
[1741314219206,2.011954,141.29,141.28,63.21266948]
[1741314219714,2.011954,141.29,141.28,70.29076948]
[1741314219919,2.011954,141.29,141.28,238.93076948]
[1741314220334,2.011954,141.29,141.28,550.93076948]
[1741314220927,0.033,141.35,141.29,27.279972]
[1741314221131,0.033,141.35,141.34,63.21266948]
[1741314221337,0.033,141.35,141.34,72.9773361]
[1741314222137,0.033,141.38,141.34,72.9773361]
[1741314222349,0.033,141.39,141.38,0.28432314]
[1741314222521,0.033,141.39,141.38,108.97543211]
[1741314223252,0.033,141.39,141.38,64.69673463]
[1741314224025,0.033,141.39,141.38,376.69673463]
[1741314224317,0.033,141.39,141.38,375.21266948]
[1741314224534,0.033,141.39,141.38,419.49136696]
[1741314225044,0.033,141.39,141.38,426.56446696]
[1741314225423,0.033,141.44,141.38,426.56446696]
[1741314225745,0.033,141.44,141.43,63.21266948]
[1741314225952,0.033,141.44,141.43,72.91649692]
[1741314226150,0.033,141.44,141.43,54.12468649]